bitfinex-derivatives/quotes_BNBF0:USTF0_20250603
["timestamp","ask_amount","ask_price","bid_price","bid_amount"]
[1748956486986,0.30023718,666.14,665.06,1.0862512]
[1748956487188,0.30023718,666.14,665.07,1.0862512]
[1748956487391,0.30023718,666.14,665.08,1.0862512]
[1748956487594,0.30023718,666.14,665.09,1.0862512]
[1748956487793,0.30023718,666.14,665.1,1.0862512]
[1748956487993,0.30023718,666.14,665.11,1.0862512]
[1748956488198,0.30023718,666.14,665.12,1.0862512]
[1748956488492,0.30023718,666.14,665.13,1.0862512]
[1748956488693,0.30023718,666.14,665.14,1.0862512]
[1748956488887,0.30023718,666.14,665.15,1.0862512]
[1748956489091,0.30023718,666.14,665.16,1.0862512]
[1748956489293,0.30023718,666.14,665.0,0.30075187]
[1748956489492,0.30023718,666.14,665.01,1.09714972]
[1748956489693,0.30023718,666.14,665.02,1.09714972]
[1748956489891,0.30023718,666.14,665.03,1.09710758]
[1748956490089,0.30023718,666.14,665.04,1.09710758]
[1748956490389,0.30023718,666.14,665.05,1.09710758]
[1748956490590,0.30023718,666.14,665.06,1.09710758]
[1748956490790,0.30023718,666.14,665.07,1.09710758]
[1748956491091,0.30023718,666.14,665.08,1.09710758]
[1748956491292,0.30023718,666.14,665.09,1.09710758]
[1748956491489,0.30023718,666.14,665.1,1.09710758]
[1748956491789,0.30023718,666.14,665.11,1.09710758]
[1748956491992,0.30023718,666.14,665.12,1.09710758]
[1748956492194,0.30023718,666.14,665.13,1.09710758]
[1748956492394,0.30023718,666.14,665.14,1.09710758]
[1748956492594,0.30023718,666.14,665.15,1.09710758]
[1748956492795,0.30023718,666.14,665.16,1.09710758]
[1748956493096,0.30023718,666.14,665.0,0.30075187]
[1748956493296,0.30023718,666.14,665.01,1.09552353]
[1748956493488,0.30023718,666.14,665.02,1.09552353]
[1748956493692,0.30023718,666.14,665.0,0.30075187]
[1748956493693,0.30023718,666.14,665.03,1.09552353]
[1748956493895,0.30023718,666.14,665.04,1.09418599]
[1748956494197,0.30023718,666.14,665.05,1.09418599]
[1748956494396,0.30023718,666.14,665.0,0.30075187]
[1748956494397,0.30023718,666.14,665.06,1.09418599]
[1748956494594,0.30023718,666.14,665.0,0.30075187]
[1748956494595,0.30023718,666.14,665.07,1.09418599]
[1748956494794,0.30023718,666.14,665.08,1.09418599]
[1748956494994,0.30023718,666.14,665.09,1.09418599]
[1748956495297,0.30023718,666.14,665.1,1.09418599]
[1748956495596,0.30023718,666.14,665.11,1.09418599]
[1748956495788,0.30023718,666.14,665.12,1.09418599]
[1748956496095,0.30023718,666.14,665.13,1.09418599]
[1748956496295,0.30023718,666.14,665.14,1.09418599]
[1748956496596,0.30023718,666.14,665.15,1.09418599]
[1748956496796,0.30023718,666.14,665.0,0.30075187]
[1748956496996,0.30023718,666.14,665.01,1.09365098]
[1748956497298,0.30023718,666.14,665.02,1.09365098]
[1748956497492,0.30023718,666.14,665.03,1.09365098]
[1748956497698,0.30023718,666.14,665.04,1.09365098]
[1748956497897,0.30023718,666.14,665.05,1.09365098]
[1748956498093,0.30023718,666.14,665.06,1.0935714]
[1748956498297,0.26164922,666.54,665.07,1.39429162]
[1748956498493,0.26164922,666.54,665.08,1.0935714]
[1748956498494,0.56170623,666.54,665.08,1.0935714]
[1748956498698,0.56170623,666.54,665.09,1.0935714]
[1748956498994,0.56170623,666.54,665.1,1.0935714]
[1748956499194,0.56170623,666.54,665.07,0.30072022]
[1748956499195,0.30005701,666.54,665.11,1.0935714]
[1748956499409,0.30005701,666.54,665.07,0.30072022]
[1748956499410,0.30005701,666.54,665.12,1.0935714]
[1748956499602,0.30005701,666.54,665.13,1.0935714]
[1748956499800,0.30005701,666.54,665.07,0.30072022]
[1748956499801,0.30005701,666.54,665.14,1.0935714]
[1748956500000,0.30005701,666.54,665.15,1.0935714]
[1748956500197,0.30005701,666.54,665.16,1.0935714]
[1748956500394,0.30005701,666.54,665.17,1.0935714]
[1748956500597,0.30005701,666.54,665.18,1.0935714]
[1748956500795,0.30005701,666.54,665.19,1.0935714]
[1748956500996,0.30005701,666.54,665.07,0.30072022]
[1748956501200,0.30005701,666.54,665.08,1.09240778]
[1748956501500,0.30005701,666.54,665.07,0.30072022]
[1748956501501,0.30005701,666.54,665.09,1.09240778]
[1748956501702,0.30005701,666.54,665.1,1.09240778]
[1748956501896,0.30005701,666.54,665.11,1.09240778]
[1748956502099,0.30005701,666.54,665.12,1.09240778]
[1748956502301,0.30005701,666.54,665.13,1.09240778]
[1748956502501,0.30005701,666.54,665.14,1.09240778]
[1748956502696,0.30005701,666.54,665.15,1.09240778]
[1748956502900,0.30005701,666.54,665.07,0.30072022]
[1748956502901,0.30005701,666.54,665.16,1.09240778]
[1748956503103,0.30005701,666.54,665.17,1.39308279]
[1748956503398,0.30005701,666.54,665.18,1.39307827]
[1748956503597,0.30005701,666.54,664.99,1.1250159]
[1748956503598,0.30005701,666.54,665.19,1.39307375]
[1748956503796,0.30005701,666.54,665.2,1.39306923]
[1748956504102,0.30005701,666.54,665.21,1.09240778]
[1748956504301,0.30005701,666.54,665.22,1.09240778]
[1748956504502,0.30005701,666.54,665.23,1.09016059]
[1748956504701,0.30005701,666.54,665.2,0.30066145]
[1748956504702,0.30005701,666.54,665.24,1.09016059]
[1748956504911,0.30005701,666.54,665.25,1.08989233]
[1748956505101,0.30005701,666.54,665.26,1.08989233]
[1748956505298,0.30005701,666.54,665.27,1.08989233]
[1748956505500,0.30005701,666.54,665.28,1.08989233]
[1748956505700,0.30005701,666.54,665.29,1.84138273]
[1748956506003,0.30005701,666.54,665.2,0.30066145]
[1748956506004,0.30005701,666.54,665.3,1.08989233]
[1748956506202,0.30005701,666.54,665.31,1.08989233]
[1748956506503,0.30005701,666.54,665.32,1.08989233]
[1748956506703,0.30005701,666.54,665.33,1.08989233]
[1748956506900,0.30005701,666.54,665.34,2.17760728]
[1748956507201,0.30005701,666.54,665.35,2.47819467]
[1748956507405,0.30005701,666.54,665.36,1.08989233]
[1748956507705,0.30005701,666.54,665.35,0.30059367]
[1748956508007,0.30005701,666.54,665.36,1.08721888]
[1748956508305,0.30005701,666.54,665.35,0.30059367]
[1748956511505,3.73366447,666.94,665.35,0.30059367]
[1748956511702,0.29988154,666.93,665.35,0.30059367]
[1748956512210,4.03354601,666.93,665.35,0.30059367]
[1748956512905,3.73366447,666.84,665.35,0.30059367]
[1748956513411,3.73366447,666.65,665.35,0.30059367]
[1748956514612,3.73366447,666.67,665.35,0.30059367]
[1748956515411,3.73366447,666.74,665.35,0.30059367]
[1748956516407,3.73366447,666.75,665.33,0.47886244]
[1748956516710,3.73366447,666.75,665.29,0.47886244]
[1748956516913,3.73366447,666.79,665.3,1.56001888]
[1748956517110,3.73366447,666.79,665.31,1.0866391]
[1748956517310,0.26149684,666.96,665.33,0.47886244]
[1748956517311,3.73366447,666.8,665.33,0.47886244]
[1748956517512,3.73366447,666.8,665.32,0.47886244]
[1748956517708,3.73366447,666.8,665.33,1.55983983]
[1748956517914,3.73366447,666.86,665.34,1.08097739]
[1748956518108,3.73366447,666.86,665.35,1.08097739]
[1748956518307,3.73366447,666.86,665.36,1.55983983]
[1748956518609,3.73366447,666.86,665.11,1.11778311]
[1748956518610,3.73366447,666.86,665.37,0.47886244]
[1748956518812,3.73366447,666.87,665.37,0.47886244]
[1748956519012,3.73366447,666.87,665.38,0.47886244]
[1748956519213,3.73366447,666.86,665.26,0.47886244]
[1748956519410,3.73366447,666.86,665.27,2.91794806]
[1748956519617,0.26149684,666.96,665.28,1.08022844]
[1748956519810,0.26149684,666.96,665.29,1.08022844]
[1748956520117,0.26149684,666.96,665.27,0.47886244]
[1748956520118,0.26149684,666.96,665.3,1.08022844]
[1748956520314,0.26149684,666.96,665.31,1.08022844]
[1748956520514,0.26149684,666.96,665.32,1.08022844]
[1748956520714,0.26149684,666.96,665.33,1.08022844]
[1748956520914,0.26149684,666.96,665.34,1.08022844]
[1748956521112,0.26149684,666.96,665.35,1.08022844]
[1748956521315,0.26149684,666.96,665.36,1.08022844]
[1748956521613,0.26149684,666.96,665.37,1.08022844]
[1748956521813,0.26149684,666.96,665.33,0.47886244]
[1748956522115,0.26149684,666.96,665.34,1.07993434]
[1748956522316,0.26149684,666.96,665.09,1.11778311]
[1748956522317,0.26149684,666.96,665.35,1.55879678]
[1748956522512,0.26149684,666.96,665.36,1.07993434]
[1748956522713,0.26149684,666.96,665.35,0.47886244]
[1748956522714,0.26149684,666.96,665.37,1.07993434]
[1748956522911,0.26149684,666.96,665.24,0.47886244]
[1748956523218,0.26149684,666.96,665.25,1.08644467]
[1748956523415,0.26149684,666.96,665.26,1.08662012]
[1748956523819,0.26149684,666.96,665.12,1.11449994]
[1748956524011,0.26149684,666.96,665.33,0.47390968]
[1748956524215,0.26149684,666.96,665.36,0.47390968]
[1748956524412,0.26149684,666.96,665.37,1.07948188]
[1748956524612,0.26149684,666.96,665.38,1.55339156]
[1748956524818,0.26149684,666.96,665.4,0.47390968]
[1748956525013,0.26149684,666.96,665.41,1.0792717]
[1748956525218,0.26149684,666.96,665.42,1.0792717]
[1748956525519,0.26149684,666.96,665.43,1.55318138]
[1748956525720,0.26149684,666.96,665.44,0.47390968]
[1748956526317,0.26149684,666.96,665.46,0.47390968]
[1748956526515,0.26149684,666.96,665.47,0.47390968]
[1748956527318,0.26149684,666.96,665.38,0.47390968]
[1748956527515,0.26149684,666.96,665.41,0.47390968]
[1748956527719,0.26149684,666.96,665.42,1.07849198]
[1748956527918,0.26149684,666.96,665.51,0.47390968]
[1748956528319,0.26149684,666.96,665.29,0.47390968]
[1748956528320,0.26149684,666.96,665.54,0.47390968]
[1748956528717,0.26149684,666.96,665.55,0.47390968]
[1748956528918,0.26149684,666.96,665.57,0.47390968]
[1748956529314,0.26149684,666.96,665.14,1.11371251]
[1748956529315,0.26149684,666.96,665.59,0.47390968]
[1748956529520,0.26149684,666.96,665.61,0.47390968]
[1748956530317,0.26149684,666.96,665.62,0.47390968]
[1748956530516,0.26149684,666.96,665.65,0.47390968]
[1748956530821,0.26149684,666.96,665.68,0.47390968]
[1748956531221,0.26149684,666.96,665.7,0.47390968]
[1748956531624,0.26149684,666.96,665.72,0.47390968]
[1748956532320,0.26149684,666.96,665.73,0.47390968]
[1748956532720,0.26149684,666.96,665.14,1.11371251]
[1748956532721,0.26149684,666.96,665.76,0.47390968]
[1748956533827,0.26149684,666.96,665.78,0.47390968]
[1748956534729,3.72739678,667.14,665.78,0.47390968]
[1748956535123,0.26139667,667.11,665.78,0.47390968]
[1748956535327,0.26139667,667.11,665.66,0.47390968]
[1748956536524,3.72739678,667.14,665.53,0.47390968]
[1748956536723,3.72739678,667.14,665.54,0.47390968]
[1748956537024,3.72739678,667.14,665.55,1.08458471]
[1748956537229,3.72739678,667.14,665.63,0.47390968]
[1748956537527,3.72739678,667.14,665.86,0.47390968]
[1748956538129,3.72739678,667.14,665.89,0.47390968]
[1748956538429,3.72739678,667.14,665.97,0.47390968]
[1748956538625,3.72739678,667.14,665.96,0.47390968]
[1748956539329,3.72739678,667.14,666.04,0.47390968]
[1748956540230,3.72739678,667.14,666.11,0.47390968]
[1748956540425,3.72739678,667.14,665.34,0.56869162]
[1748956540426,3.72739678,667.14,666.1,0.47390968]
[1748956540628,3.72739678,667.14,666.09,0.47390968]
[1748956540828,3.72739678,667.14,666.14,0.47390968]
[1748956541030,3.72739678,667.14,666.02,0.47390968]
[1748956541326,3.72739678,667.14,666.34,0.47390968]
[1748956541524,3.72739678,667.14,665.38,0.96756561]
[1748956541525,3.72739678,667.14,666.31,0.47390968]
[1748956541923,3.72739678,667.14,666.3,0.47390968]
[1748956542127,3.72739678,667.14,666.19,0.47390968]
[1748956542329,3.72739678,667.14,666.21,0.47390968]
[1748956542528,3.72739678,667.14,666.22,0.47390968]
[1748956542726,3.72739678,667.14,666.2,0.47390968]
[1748956543325,3.72739678,667.14,666.24,0.47390968]
[1748956543727,3.72739678,667.14,666.22,0.47390968]
[1748956544333,3.72739678,667.14,665.95,0.47390968]
[1748956544334,3.72739678,667.14,666.21,0.47390968]
[1748956544630,3.72739678,667.14,666.48,0.47390968]
[1748956545029,3.72739678,667.14,666.45,0.47390968]
[1748956545226,3.50397528,667.14,666.72,0.47390968]
[1748956545428,0.26132012,667.43,666.75,0.1023736]
[1748956545732,0.29966138,667.42,666.24,0.56869162]
[1748956545928,0.29966138,667.42,666.5,0.56869162]
[1748956546133,0.29966138,667.42,666.56,0.56869162]
[1748956546451,0.29966138,667.42,665.83,0.56869162]
[1748956546734,0.29966138,667.42,665.84,1.65089702]
[1748956546935,0.29966138,667.42,665.85,1.65089702]
[1748956547129,0.29966138,667.42,665.86,1.65089702]
[1748956547330,0.29966138,667.42,665.87,1.65089702]
[1748956547530,0.29966138,667.42,665.88,1.65089702]
[1748956547830,0.29966138,667.42,665.89,1.65089702]
[1748956548136,0.29966138,667.42,665.9,1.65077763]
[1748956548436,0.29966138,667.42,665.91,1.65077763]
[1748956548630,0.29966138,667.42,665.92,1.65077763]
[1748956548837,0.29966138,667.42,666.26,0.56869162]
[1748956549146,0.29966138,667.42,665.67,1.10697917]
[1748956549147,0.29966138,667.42,666.29,0.56869162]
[1748956549432,0.29966138,667.42,666.3,0.54041242]
[1748956549631,0.29966138,667.42,665.67,1.10697917]
[1748956549632,0.29966138,667.42,666.31,0.54041242]
[1748956549834,0.29966138,667.42,666.32,0.54041242]
[1748956550037,0.29966138,667.42,666.18,0.56869162]
[1748956550038,0.29966138,667.42,666.33,0.54041242]
[1748956550234,0.29966138,667.42,666.34,0.54041242]
[1748956550434,0.29966138,667.42,666.35,0.54041242]
[1748956550733,0.29966138,667.42,666.36,0.54041242]
[1748956550939,0.29966138,667.42,666.37,0.54041242]
[1748956551140,0.29966138,667.42,666.38,0.54041242]
[1748956551340,0.29966138,667.42,665.58,0.96756561]
[1748956551341,0.29966138,667.42,666.39,0.54041242]
[1748956551535,0.29966138,667.42,666.4,0.54041242]
[1748956551739,0.29966138,667.42,665.59,0.96756561]
[1748956551740,0.29966138,667.42,666.41,0.54041242]
[1748956551942,0.29966138,667.42,666.42,0.54041242]
[1748956552141,0.29966138,667.42,666.43,0.54041242]
[1748956552343,0.29966138,667.42,666.44,0.54041242]
[1748956552645,0.29966138,667.42,666.45,0.54041242]
[1748956553045,0.29966138,667.42,666.46,0.54041242]
[1748956553246,0.29966138,667.42,666.47,0.54041242]
[1748956553544,0.29966138,667.42,666.12,0.56869162]
[1748956553545,0.29966138,667.42,666.48,0.54041242]
[1748956553741,0.29966138,667.42,666.49,0.54041242]
[1748956553939,0.29966138,667.42,666.09,0.56869162]
[1748956553940,0.29966138,667.42,666.5,0.54041242]
[1748956554143,0.29966138,667.42,666.09,0.56869162]
[1748956554144,0.29966138,667.42,666.51,0.54041242]
[1748956554345,0.29966138,667.42,666.52,0.54041242]
[1748956554539,0.29966138,667.42,666.53,0.54041242]
[1748956554742,0.29966138,667.42,666.54,0.54041242]
[1748956554943,0.29966138,667.42,665.99,0.56869162]
[1748956555141,0.29966138,667.42,666.0,2.29722288]
[1748956555344,0.29966138,667.42,666.03,0.56869162]
[1748956555540,0.29966138,667.42,666.04,1.72853126]
[1748956555747,0.29966138,667.42,666.05,0.54008496]
[1748956556046,0.29966138,667.42,666.06,1.72706779]
[1748956556242,0.29966138,667.42,666.07,1.72706779]
[1748956556443,0.29966138,667.42,666.08,1.72706779]
[1748956556644,0.29966138,667.42,666.09,1.72706779]
[1748956556841,0.29966138,667.42,666.1,1.72706779]
[1748956557042,0.29966138,667.42,666.11,1.72706779]
[1748956557246,0.29966138,667.42,666.12,1.72706779]
[1748956557447,0.29966138,667.42,666.13,1.72706779]
[1748956557749,0.29966138,667.42,666.14,0.54008496]
[1748956557948,0.29966138,667.42,666.15,0.54008496]
[1748956558246,0.29966138,667.42,666.16,0.54008496]
[1748956558446,0.29966138,667.42,665.97,0.56869162]
[1748956558447,0.29966138,667.42,666.17,0.54008496]
[1748956558640,0.29966138,667.42,665.78,1.10698493]
[1748956558641,0.29966138,667.42,666.18,0.54008496]
[1748956559047,0.29966138,667.42,666.19,0.54008496]
[1748956559246,0.29966138,667.42,666.2,0.54008496]
[1748956559448,0.29966138,667.42,666.21,0.54008496]
[1748956559644,0.29966138,667.42,666.22,0.54008496]
[1748956559847,0.29966138,667.42,666.23,0.54008496]
[1748956560042,0.29966138,667.42,666.24,0.54008496]
[1748956560249,0.29966138,667.42,665.61,1.47644827]
[1748956560250,0.29966138,667.42,666.25,0.54008496]
[1748956560548,0.29966138,667.42,666.26,0.54008496]
[1748956560745,0.29966138,667.42,666.27,0.54008496]
[1748956560943,0.29966138,667.42,666.28,0.54008496]
[1748956561148,0.29966138,667.42,666.29,0.54008496]
[1748956561350,0.29966138,667.42,666.3,0.54008496]
[1748956561546,0.29966138,667.42,665.71,1.1074085]
[1748956561547,0.29966138,667.42,666.31,0.54008496]
[1748956561750,0.29966138,667.42,666.32,0.54008496]
[1748956562051,0.29966138,667.42,666.33,0.54008496]
[1748956562251,0.29966138,667.42,666.34,0.54008496]
[1748956562447,0.29966138,667.42,666.35,0.54132445]
[1748956562646,0.29966138,667.42,665.78,0.56869162]
[1748956562853,0.29966138,667.42,665.79,1.71708818]
[1748956563051,0.29966138,667.42,665.8,1.71708818]
[1748956563348,0.29966138,667.42,665.52,1.47644827]
[1748956563349,0.29966138,667.42,665.81,2.2857798]
[1748956563552,0.29966138,667.42,665.82,1.71708818]
[1748956563751,0.29966138,667.42,665.83,1.71708818]
[1748956563945,0.29966138,667.42,665.84,1.71708818]
[1748956564246,0.29966138,667.42,665.85,2.2857798]
[1748956564454,0.29966138,667.42,665.89,0.56869162]
[1748956564759,0.29966138,667.42,665.9,1.71708818]
[1748956564953,0.29966138,667.42,665.91,1.71285104]
[1748956565147,0.29966138,667.42,665.92,1.71285104]
[1748956565350,0.29966138,667.42,665.93,1.71285104]
[1748956565547,0.29966138,667.42,665.94,0.54132631]
[1748956565852,0.29966138,667.42,665.95,0.54132631]
[1748956566152,0.29966138,667.42,665.96,0.54132631]
[1748956566353,0.29966138,667.42,665.97,0.54132631]
[1748956566548,0.29966138,667.42,665.98,0.54132631]
[1748956566754,0.29966138,667.42,665.99,0.54132631]
[1748956566954,0.29966138,667.42,666.0,0.54132631]
[1748956567253,0.29966138,667.42,666.01,0.54132631]
[1748956567453,0.29966138,667.42,666.02,0.54132631]
[1748956567753,0.29966138,667.42,666.14,0.56869162]
[1748956567959,0.29966138,667.42,665.6,0.96756561]
[1748956567960,0.29966138,667.42,666.15,0.54132631]
[1748956568153,0.29966138,667.42,666.16,0.54132631]
[1748956568346,0.29966138,667.42,666.17,0.54132631]
[1748956568549,0.29966138,667.42,666.18,0.54132631]
[1748956568751,0.29966138,667.42,666.27,0.56869162]
[1748956568946,0.29966138,667.42,666.28,0.54132631]
[1748956569152,0.29966138,667.42,666.29,0.54132631]
[1748956569351,0.29966138,667.42,666.3,0.54132631]
[1748956569548,0.29966138,667.42,666.31,0.54132631]
[1748956569751,0.29966138,667.42,666.32,0.54132631]
[1748956569951,0.29966138,667.42,666.33,0.54132631]
[1748956570149,0.29966138,667.42,666.34,0.54132631]
[1748956570455,0.29966138,667.42,665.45,1.47644827]
[1748956570456,0.29966138,667.42,666.35,0.54132631]
[1748956570855,0.29966138,667.42,666.36,0.54132631]
[1748956571056,0.29966138,667.42,666.37,0.54132631]
[1748956571355,0.29966138,667.42,666.38,0.54132631]
[1748956571657,0.29966138,667.42,666.39,0.54132631]
[1748956571855,0.29966138,667.42,666.4,0.54132631]
[1748956572053,0.29966138,667.42,665.89,0.56869162]
[1748956572250,0.29966138,667.42,665.9,0.54427426]
[1748956572554,0.29966138,667.42,665.91,0.54427426]
[1748956572754,0.29966138,667.42,665.92,0.54427426]
[1748956572955,0.29966138,667.42,665.86,0.56869162]
[1748956572956,0.29966138,667.42,665.93,0.54427426]
[1748956573157,0.29966138,667.42,665.94,0.54427426]
[1748956573356,0.29966138,667.42,665.95,0.54427426]
[1748956573658,0.29966138,667.42,665.96,0.54427426]
[1748956573852,0.29966138,667.42,665.97,0.54427426]
[1748956574059,0.29966138,667.42,665.98,0.54427426]
[1748956574257,0.29966138,667.42,665.19,0.96756561]
[1748956574258,0.29966138,667.42,665.99,0.54427426]
[1748956574459,0.29966138,667.42,666.0,0.54427426]
[1748956574661,0.29966138,667.42,666.01,0.54427426]
[1748956574858,0.29966138,667.42,666.02,0.54427426]
[1748956575061,0.29966138,667.42,666.03,0.54427426]
[1748956575277,0.29966138,667.42,666.04,0.54427426]
[1748956575458,0.29966138,667.42,666.05,0.54427426]
[1748956575657,3.70853171,667.39,666.06,0.54427426]
[1748956575858,0.29968383,667.37,666.07,0.54427426]
[1748956576056,0.29968383,667.37,666.08,0.54427426]
[1748956576256,0.29968383,667.37,666.09,0.54427426]
[1748956576460,4.00821554,667.37,666.1,0.54427426]
[1748956576654,4.00821554,667.37,666.11,0.54427426]
[1748956576861,0.29968383,667.37,665.52,1.11050776]
[1748956577059,0.29968383,667.37,665.53,3.84521699]
[1748956577359,0.29968383,667.37,665.36,1.47644827]
[1748956577360,0.29968383,667.37,665.54,1.98362038]
[1748956577554,0.29968383,667.37,665.55,1.59518252]
[1748956577855,0.29968383,667.37,665.56,1.98385755]
[1748956578056,0.29968383,667.37,665.57,2.73493462]
[1748956578255,0.29968383,667.37,665.58,1.68335873]
[1748956578453,0.29968383,667.37,665.59,3.5341225]
[1748956578759,0.29968383,667.37,665.6,1.98383949]
[1748956578960,0.29968383,667.37,665.61,1.98383498]
[1748956579153,0.29968383,667.37,665.62,1.98383047]
[1748956579360,0.29968383,667.37,665.63,1.98382595]
[1748956579554,0.29968383,667.37,665.64,1.98382144]
[1748956579758,0.29968383,667.37,665.65,1.98381692]
[1748956580059,0.29968383,667.37,665.66,1.98381241]
[1748956580259,0.29968383,667.37,665.67,1.9838079]
[1748956580461,0.29968383,667.37,665.68,1.98380338]
[1748956580663,3.70853171,667.36,665.69,1.98379887]
[1748956580961,0.29969281,667.35,665.7,3.08342383]
[1748956581260,0.29969281,667.35,665.71,1.98378984]
[1748956581457,0.29969281,667.35,665.72,0.84401653]
[1748956581656,4.00822452,667.35,665.73,1.98217127]
[1748956581859,4.00822452,667.35,665.74,1.98216676]
[1748956582061,0.29969281,667.35,665.75,1.98216224]
[1748956582260,0.29969281,667.35,665.76,1.68174918]
[1748956582463,0.29969281,667.35,665.77,1.68174918]
[1748956582661,0.29969281,667.35,665.75,0.30041306]
[1748956582662,0.29969281,667.35,665.78,1.68174918]
[1748956582860,0.29969281,667.35,665.79,1.68174918]
[1748956583061,3.70853171,667.32,665.8,1.68174918]
[1748956583260,0.29971077,667.31,665.81,1.68174918]
[1748956583457,3.70853171,667.23,665.82,1.68174918]
[1748956583764,4.00827842,667.23,665.83,1.68174918]
[1748956583959,4.00827842,667.23,665.84,1.68174918]
[1748956584166,4.00827842,667.23,665.85,1.13815925]
[1748956584363,0.29974671,667.23,665.86,1.13815925]
[1748956584559,0.29974671,667.23,665.87,1.13815925]
[1748956584761,0.29974671,667.23,665.88,1.68106438]
[1748956584963,0.29974671,667.23,665.89,1.98141428]
[1748956585157,0.29974671,667.23,665.9,1.98140977]
[1748956585356,0.29974671,667.23,665.91,0.84324601]
[1748956585559,0.29974671,667.23,665.92,1.97667755]
[1748956585760,0.29974671,667.23,665.93,1.67634118]
[1748956585960,0.29974671,667.23,665.94,1.67634118]
[1748956586164,0.29974671,667.23,665.92,0.30033637]
[1748956586165,0.29974671,667.23,665.95,1.13343605]
[1748956586372,0.29974671,667.23,665.96,1.13343605]
[1748956586670,0.29974671,667.23,665.97,1.13343605]
[1748956586867,0.29974671,667.23,665.98,1.13343605]
[1748956587167,0.29974671,667.23,665.92,0.30033637]
[1748956587370,0.29974671,667.23,665.93,1.12983543]
[1748956587564,0.29974671,667.23,665.94,1.12983543]
[1748956587867,0.29974671,667.23,665.95,1.12983543]
[1748956588064,0.29974671,667.23,665.96,1.12983543]
[1748956588264,0.29974671,667.23,665.97,1.12983543]
[1748956588568,0.29974671,667.23,665.98,1.12983543]
[1748956588765,0.29974671,667.23,665.99,1.12983543]
[1748956588963,0.29974671,667.23,665.92,0.30033637]
[1748956589169,0.29974671,667.23,665.93,1.13016808]
[1748956589468,0.29974671,667.23,665.94,1.13052967]
[1748956589668,0.29974671,667.23,665.95,1.13052967]
[1748956589862,0.29974671,667.23,665.96,1.13052967]
[1748956590068,0.29974671,667.23,665.97,1.13052967]
[1748956590269,0.29974671,667.23,665.98,1.13052967]
[1748956590463,0.29974671,667.23,665.99,1.13052967]
[1748956590767,0.29974671,667.23,665.93,0.30033186]
[1748956590968,0.29974671,667.23,665.94,1.13065392]
[1748956591162,0.29974671,667.23,665.93,0.30033186]
[1748956591163,0.29974671,667.23,665.95,1.13065392]
[1748956591469,0.29974671,667.23,665.96,1.13065392]
[1748956591669,0.29974671,667.23,665.97,1.13065392]
[1748956591868,0.29974671,667.23,665.98,1.13065392]
[1748956592169,0.29974671,667.23,665.99,1.13065392]
[1748956592370,0.29974671,667.23,666.0,1.13065392]
[1748956592563,0.29974671,667.23,665.93,0.30033186]
[1748956592564,0.29974671,667.23,666.01,1.13065392]
[1748956592767,0.29974671,667.23,666.02,1.13065392]
[1748956593069,0.29974671,667.23,665.93,0.30033186]
[1748956593070,0.29974671,667.23,666.03,1.13065392]
[1748956593272,0.29974671,667.23,665.93,0.30033186]
[1748956593273,0.29974671,667.23,666.04,1.13176527]
[1748956593570,0.29974671,667.23,666.05,1.13176527]
[1748956593871,0.29974671,667.23,665.93,0.30033186]
[1748956594070,0.29974671,667.23,665.94,2.22988344]
[1748956594266,0.29974671,667.23,665.95,1.43200443]
[1748956594467,0.29974671,667.23,665.96,1.43199992]
[1748956594667,0.29974671,667.23,665.97,1.43199541]
[1748956594867,0.29974671,667.23,665.98,1.4319909]
[1748956595169,0.29974671,667.23,665.99,1.43198639]
[1748956595471,0.29974671,667.23,666.0,1.13168159]
[1748956595767,0.29974671,667.23,666.01,1.13168159]
[1748956595966,0.29974671,667.23,666.02,1.13168159]
[1748956596166,0.29974671,667.23,666.03,1.13168159]
[1748956596370,0.29974671,667.23,666.04,1.13168159]
[1748956596671,0.29974671,667.23,666.05,1.13168159]
[1748956596872,0.29974671,667.23,665.99,0.3003048]
[1748956597268,0.29974671,667.23,666.0,1.13038706]
[1748956597473,0.29974671,667.23,665.99,0.3003048]
[1748956597474,0.29974671,667.23,666.01,1.13038706]
[1748956597775,0.29974671,667.23,666.02,1.13038706]
[1748956597970,0.29974671,667.23,666.03,1.13038706]
[1748956598172,0.29974671,667.23,666.04,1.13038706]
[1748956598373,0.29974671,667.23,666.05,1.13038706]
[1748956598576,0.29974671,667.23,665.99,0.3003048]
[1748956598770,0.29974671,667.23,666.0,1.12714817]
[1748956598972,0.29974671,667.23,666.01,1.12714817]
[1748956599170,0.29974671,667.23,666.02,1.12714817]
[1748956599373,0.29974671,667.23,666.03,1.12714817]
[1748956599577,0.29974671,667.23,666.04,1.12714817]
[1748956599777,0.29974671,667.23,666.05,1.12714817]
[1748956599977,0.29974671,667.23,665.99,0.3003048]
[1748956600177,0.29974671,667.23,666.0,1.12639727]
[1748956600377,0.29974671,667.23,666.01,1.12639727]
[1748956600682,0.29974671,667.23,666.02,1.12639727]
[1748956600878,0.29974671,667.23,666.03,1.12639727]
[1748956601073,0.891,667.22,666.04,1.12333729]
[1748956601277,0.891,667.22,666.05,1.12333729]
[1748956601578,0.891,667.22,665.99,0.3003048]
[1748956601776,0.891,667.22,666.0,1.11824303]
[1748956602078,0.891,667.22,666.01,1.11824303]
[1748956602281,0.891,667.22,666.02,1.11824303]
[1748956602473,0.891,667.22,666.03,1.11824303]
[1748956602678,0.891,667.22,665.99,0.3003048]